fUST/lending_fUST_20251017
["ID","MTS","AMOUNT","RATE_DAILY","PERIOD"]
[391593107,1760683849735,-1000.0,0.0004,120]
[391593108,1760683849745,-981.18226283,0.0004,120]
[391593110,1760683849754,-17573.41039177,0.0004,30]
[391593112,1760683849764,-1496187.48575313,0.0004,120]
[391593114,1760683849773,-102313.88512517,0.0004,7]
[391593116,1760683849782,-5000.0,0.0004,100]
[391593118,1760683849792,-259.132667,0.0004,120]
[391593120,1760683849801,-204.491708,0.0004,120]
[391593122,1760683849811,-204.491708,0.0004,120]
[391593124,1760683849820,-204.491708,0.0004,120]
[391593125,1760683849829,-204.491708,0.0004,120]
[391593127,1760683849839,-204.491708,0.0004,120]
[391593129,1760683849847,-204.491708,0.0004,120]
[391593131,1760683849857,-204.491708,0.0004,120]
[391593133,1760683849866,-204.491698,0.0004,120]
[391593135,1760683849875,-359.897633,0.0004,120]
[391593137,1760683849884,-359.897633,0.0004,120]
[391593138,1760683849894,-359.897633,0.0004,120]
[391593140,1760683849903,-359.897633,0.0004,120]
[391593142,1760683849913,-359.897633,0.0004,120]
[391593144,1760683849924,-359.897633,0.0004,120]
[391593146,1760683849934,-359.897633,0.0004,120]
[391593148,1760683849943,-359.897631,0.0004,120]
[391593149,1760683849952,-635.498903,0.0004,120]
[391593151,1760683849961,-635.498903,0.0004,120]
[391593153,1760683849970,-635.498903,0.0004,120]
[391593155,1760683849979,-635.498903,0.0004,120]
[391593157,1760683849989,-635.498903,0.0004,120]
[391593159,1760683849998,-635.498903,0.0004,120]
[391593161,1760683850007,-635.498903,0.0004,120]
[391593163,1760683850017,-635.4989,0.0004,120]
[391593165,1760683850026,-151.0,0.0004,120]
[391593167,1760683850036,-270.186692,0.0004,120]
[391593168,1760683850045,-151.0,0.0004,120]
[391593170,1760683850055,-151.0,0.0004,120]
[391593172,1760683850064,-151.0,0.0004,120]
[391593174,1760683850074,-151.0,0.0004,120]
[391593176,1760683850083,-151.0,0.0004,120]
[391593178,1760683850092,-151.0,0.0004,120]
[391593180,1760683850102,-151.0,0.0004,120]
[391593182,1760683850111,-151.0,0.0004,120]
[391593183,1760683850120,-151.0,0.0004,120]
[391593185,1760683850129,-1416.023304,0.0004,120]
[391593187,1760683850139,-1416.023304,0.0004,120]
[391593189,1760683850148,-1416.023304,0.0004,120]
[391593191,1760683850156,-1416.023304,0.0004,120]
[391593193,1760683850166,-607.183937,0.0004,120]
[391593195,1760683850178,-1416.023304,0.0004,120]
[391593196,1760683850188,-607.183937,0.0004,120]
[391593198,1760683850197,-1416.023304,0.0004,120]
[391593200,1760683850207,-607.183937,0.0004,120]
[391593202,1760683850216,-1416.023304,0.0004,120]
[391593204,1760683850225,-1416.023304,0.0004,120]
[391593206,1760683850235,-1416.023304,0.0004,120]
[391593208,1760683850244,-1416.023304,0.0004,120]
[391593209,1760683850254,-1416.023304,0.0004,120]
[391593211,1760683850264,-1416.023304,0.0004,120]
[391593212,1760683850273,-607.183937,0.0004,120]
[391593214,1760683850282,-607.183937,0.0004,120]
[391593216,1760683850292,-607.183937,0.0004,120]
[391593218,1760683850301,-607.183937,0.0004,120]
[391593219,1760683850311,-607.183937,0.0004,120]
[391593220,1760683850321,-607.183937,0.0004,120]
[391593221,1760683850330,-607.183937,0.0004,120]
[391593222,1760683850340,-256.646383,0.0004,120]
[391593223,1760683850350,-256.646383,0.0004,120]
[391593224,1760683850360,-607.183937,0.0004,120]
[391593225,1760683850370,-256.646383,0.0004,120]
[391593226,1760683850379,-607.183937,0.0004,120]
[391593227,1760683850389,-256.646383,0.0004,120]
[391593228,1760683850399,-256.646383,0.0004,120]
[391593229,1760683850408,-256.646383,0.0004,120]
[391593230,1760683850418,-256.646383,0.0004,120]
[391593231,1760683850432,-256.646383,0.0004,120]
[391593232,1760683850442,-256.646383,0.0004,120]
[391593233,1760683850452,-256.646383,0.0004,120]
[391593234,1760683850462,-256.646383,0.0004,120]
[391593235,1760683850472,-256.646383,0.0004,120]
[391593236,1760683850483,-401.91132231,0.0004,120]
[391593237,1760683850493,-151.0,0.0004,120]
[391593238,1760683850504,-151.0,0.0004,120]
[391593239,1760683850515,-151.0,0.0004,120]
[391593240,1760683850525,-151.0,0.0004,120]
[391593241,1760683850535,-151.0,0.0004,120]
[391593242,1760683850544,-151.0,0.0004,120]
[391593243,1760683850554,-151.0,0.0004,120]
[391593244,1760683850564,-186.211121,0.0004,120]
[391593245,1760683850573,-341.778581,0.0004023,120]
[391593246,1760683850584,-603.0,0.0004026,2]
[391593247,1760683850593,-3116.53,0.00040413,2]
[391593248,1760683850603,-151.0,0.00040493,120]
[391593249,1760683850613,-399.6220872,0.00040493,30]
[391593250,1760683850623,-392.4362857,0.00040493,30]
[391593251,1760683850633,-392.4362857,0.00040493,30]
[391593252,1760683850646,-392.4362857,0.00040493,30]
[391593253,1760683850656,-392.4362857,0.00040493,30]
[391593254,1760683850666,-1500.0,0.000405,120]
[391593255,1760683850678,-437.64,0.000405,2]
[391593256,1760683850687,-765.0,0.000405,30]
[391593257,1760683850696,-288.13492177,0.00040521,5]
[391593258,1760683850706,-1000.0,0.00040521,4]
[391593259,1760683850715,-1000.0,0.00040521,2]
[391593260,1760683850726,-1000.0,0.00040521,5]
[391593261,1760683850736,-603.0,0.00040773,7]
[391593262,1760683850746,-603.0,0.00040793,2]
[391593263,1760683850756,-4201.0,0.0004091,120]
[391593264,1760683850766,-603.0,0.00040982,2]
[391593265,1760683850776,-1500.0,0.00041068,4]
[391593266,1760683850786,-924.17170254,0.00041068,5]
[391593267,1760683850796,-1038.43491051,0.00041068,2]
[391593268,1760683850806,-252.48954635,0.00041096,2]
[391593270,1760683850816,-603.0,0.00041114,2]
[391593271,1760683850826,-150.223,0.00041154,2]
[391593273,1760683850837,-1416.023304,0.00041154,120]
[391593275,1760683850847,-1416.023304,0.00041154,120]
[391593277,1760683850856,-1416.023304,0.00041154,120]
[391593279,1760683850866,-1416.02330178,0.00041154,120]
[391593281,1760683850876,-256.646383,0.00041154,120]
[391593282,1760683850886,-256.646383,0.00041154,120]
[391593284,1760683850897,-256.646383,0.00041154,120]
[391593286,1760683850906,-256.646389,0.00041154,120]
[391593288,1760683850915,-151.0,0.00041154,120]
[391593290,1760683850929,-4028.25422548,0.000412,120]
[391593292,1760683850938,-151.0,0.000412,120]
[391593294,1760683850948,-607.183937,0.000412,120]
[391593296,1760683850958,-607.183937,0.000412,120]
[391593305,1760683851049,-607.183937,0.000412,120]
[391593307,1760683851059,-607.183937,0.000412,120]
[391593309,1760683851068,-183.0,0.0004129,2]
[391593311,1760683851078,-28968.66282042,0.00041332,120]
[391593313,1760683851087,-500.95043733,0.00041408,15]
[391593315,1760683851096,-500.0,0.00041408,15]
[391593317,1760683851106,-33722.9671,0.00041444,7]
[391593318,1760683851115,-1117401.6626,0.00041444,7]
[391593320,1760683851124,-151.0,0.00041444,120]
[391593322,1760683851134,-607.183937,0.00041444,120]
[391593324,1760683851143,-607.183937,0.00041444,120]
[391593326,1760683851152,-607.183937,0.00041444,120]
[391593328,1760683851162,-607.183931,0.00041444,120]
[391593330,1760683851171,-49046.47,0.00041464,15]
[391593331,1760683851184,-150.0,0.00041473,10]
[391593333,1760683851193,-150.0,0.00041473,7]
[391593335,1760683851203,-150.0,0.00041473,10]
[391593337,1760683851212,-2000.0,0.000415,120]
[391593339,1760683851222,-1616.08244258,0.00041616,4]
[391593341,1760683851231,-781.67297769,0.00041674,120]
[391593343,1760683851241,-600.0,0.00041687,2]
[391593345,1760683851250,-178.5456456,0.00041764,120]
[391593347,1760683851260,-188.6,0.000418,120]
[391593348,1760683851270,-500.0,0.000418,60]
[391593350,1760683851279,-3462.81,0.00041807,2]
[391593352,1760683851288,-183.0,0.00041827,120]
[391593354,1760683851297,-183.0,0.00041919,7]
[391593356,1760683851306,-200.10337942,0.00041973,2]
[391593358,1760683851316,-45979.53883154,0.00042,120]
[391593360,1760683851326,-200.0,0.00042,120]
[391593362,1760683851336,-5000.0,0.00042,30]
[391593364,1760683851345,-10095.0,0.00042,120]
[391593365,1760683851354,-473.83769,0.00042,120]
[391593367,1760683851363,-1000.0,0.00042,120]
[391593369,1760683851372,-4000.0,0.00042,120]
[391593371,1760683851381,-191.25,0.00042,14]
[391593373,1760683851390,-250.0,0.00042021,10]
[391593375,1760683851399,-379.76541967,0.00042021,7]
[391593377,1760683851408,-250.0,0.00042021,10]
[391593379,1760683851417,-17695.6,0.0004207,15]
[391593380,1760683851431,-257.21724074,0.0004211,30]
[391593382,1760683851440,-600.0,0.00042121,2]
[391593384,1760683851450,-300.0,0.00042168,90]
[391593386,1760683851459,-300.0,0.00042168,90]
[391593388,1760683851469,-600.0,0.00042272,90]
[391593390,1760683851478,-50000.0,0.00042329,120]
[391593392,1760683851488,-257.21724074,0.00042329,30]
[391593394,1760683851497,-500.0,0.00042348,60]
[391593396,1760683851506,-982.0,0.0004237,2]
[391593398,1760683851515,-631.0,0.0004237,2]
[391593399,1760683851524,-2162.0,0.0004237,2]
[391593401,1760683851534,-150.0,0.0004237,2]
[391593403,1760683851543,-411.0,0.0004237,2]
[391593405,1760683851552,-500.0,0.00042373,10]
[391593407,1760683851561,-500.0,0.00042392,30]
[391593408,1760683851571,-1785.7236185,0.000424,120]
[391593410,1760683851580,-2502.19,0.000424,14]
[391593412,1760683851590,-3000.0,0.000425,120]
[391593414,1760683851599,-153.0,0.00042508,30]
[391593416,1760683851610,-153.0,0.00042516,30]
[391593418,1760683851619,-153.0,0.00042516,30]
[391593420,1760683851628,-257.21724074,0.00042521,30]
[391593422,1760683851637,-153.0,0.00042524,30]
[391593424,1760683851650,-153.0,0.00042524,30]
[391593425,1760683851660,-153.0,0.00042531,30]
[391593427,1760683851671,-153.0,0.00042532,30]
[391593429,1760683851682,-600.0,0.00042556,2]
[391593431,1760683851691,-183.0,0.00042556,2]
[391593433,1760683851700,-451.89057931,0.00042568,10]
[391593435,1760683851709,-433.46249405,0.00042568,10]
[391593437,1760683851720,-185.0,0.00042647,2]
[391593438,1760683851730,-437.64,0.000427,7]
[391593440,1760683851740,-257.21724074,0.0004274,30]
[391593442,1760683851749,-13024.62479598,0.000428,30]
[391593444,1760683851759,-183.0,0.00042864,7]
[391593446,1760683851768,-500.0,0.00042896,60]
[391593448,1760683851778,-81628.0242835,0.00042898,2]
[391593450,1760683851787,-500.57255581,0.00042921,10]
[391593452,1760683851796,-257.21724074,0.00042932,30]
[391593454,1760683851805,-600.0,0.0004299,2]
[391593456,1760683851814,-521639.27490861,0.00043,120]
[391593457,1760683851824,-285.53625724,0.00043,120]
[391593459,1760683851833,-12432.0,0.00043,120]
[391593461,1760683851842,-6570.02302447,0.00043,30]
[391593463,1760683851851,-103148.95524468,0.00043,120]
[391593465,1760683851860,-1000.0,0.00043,120]
[391593467,1760683851869,-2006.55557672,0.00043,60]
[391593469,1760683851879,-183.0,0.00043019,2]
[391593471,1760683851888,-875.90692157,0.000431,120]
[391593473,1760683851897,-257.21724074,0.00043151,30]
[391593474,1760683851906,-257.21724074,0.00043342,30]
[391593476,1760683851915,-160.0,0.0004335,4]
[391593478,1760683851927,-161.3725935,0.0004335,5]
[391593480,1760683851937,-600.0,0.00043424,2]
[391593481,1760683851946,-183.0,0.00043435,2]
[391593483,1760683851956,-500.0,0.00043444,60]
[391593485,1760683851966,-118571.6874,0.00043444,30]
[391593487,1760683851977,-1699948.5104,0.00043444,30]
[391593489,1760683851987,-1000.0,0.000435,120]
[391593491,1760683851996,-4000.0,0.000435,120]
[391593493,1760683852006,-257.21724074,0.00043534,30]
[391593495,1760683852015,-1444.0,0.00043562,120]
[391593497,1760683852024,-221.87,0.00043562,30]
[391593499,1760683852033,-257.21724074,0.00043753,30]
[391593501,1760683852042,-500.0,0.00043835,60]
[391593502,1760683852052,-500.50711057,0.00043835,2]
[391593504,1760683852061,-508.48410421,0.00043835,60]
[391593506,1760683852070,-502.52521984,0.00043835,60]
[391593508,1760683852080,-630.66386001,0.00043835,60]
[391593510,1760683852088,-500.0,0.00043835,60]
[391593512,1760683852098,-503.33557328,0.00043835,60]
[391593514,1760683852107,-500.0,0.00043835,60]
[391593516,1760683852117,-483.17457533,0.00043835,60]
[391593518,1760683852126,-502.35899625,0.00043835,60]
[391593519,1760683852135,-507.29991003,0.00043835,60]
[391593521,1760683852144,-1000.0,0.00043835,2]
[391593523,1760683852154,-501.17142525,0.00043835,60]
[391593525,1760683852163,-501.01454209,0.00043835,60]
[391593527,1760683852176,-491.81562693,0.00043835,60]
[391593529,1760683852186,-500.0,0.00043835,60]
[391593531,1760683852195,-542.32,0.00043835,60]
[391593533,1760683852204,-500.0,0.00043835,60]
[391593535,1760683852213,-502.15143191,0.00043835,60]
[391593537,1760683852222,-500.0,0.00043835,60]
[391593538,1760683852232,-996.44,0.00043835,60]
[391593540,1760683852242,-500.0,0.00043835,60]
[391593542,1760683852251,-1000.0,0.00043835,2]
[391593544,1760683852262,-729.09,0.00043835,60]
[391593546,1760683852271,-500.0,0.00043835,60]
[391593548,1760683852280,-500.0,0.00043835,60]
[391593550,1760683852289,-500.0,0.00043835,60]
[391593552,1760683852299,-500.0,0.00043835,60]
[391593553,1760683852308,-440.25402527,0.00043835,60]
[391593554,1760683852318,-506.10920059,0.00043835,60]
[391593556,1760683852327,-1000.0,0.00043835,120]
[391593558,1760683852335,-500.0,0.00043835,60]
[391593560,1760683852344,-500.0,0.00043835,60]
[391593561,1760683852354,-500.40062163,0.00043835,60]
[391593563,1760683852363,-834.03,0.00043835,60]
[391593565,1760683852373,-500.0,0.00043835,60]
[391593567,1760683852383,-500.0,0.00043835,60]
[391593569,1760683852392,-500.0,0.00043835,60]
[391593571,1760683852401,-500.0,0.00043835,60]
[391593573,1760683852411,-500.0,0.00043835,60]
[391593575,1760683852420,-500.0,0.00043835,60]
[391593576,1760683852436,-500.0,0.00043835,60]
[391593578,1760683852445,-500.0,0.00043835,60]
[391593580,1760683852454,-500.0,0.00043835,60]
[391593582,1760683852464,-500.0,0.00043835,60]
[391593584,1760683852473,-508.71173251,0.00043835,60]
[391593586,1760683852482,-517.03162506,0.00043835,60]
[391593588,1760683852492,-733.44,0.00043835,60]
[391593590,1760683852501,-547.73582639,0.00043835,60]
[391593592,1760683852511,-484.79428999,0.00043835,60]
[391593593,1760683852520,-500.0,0.00043835,60]
[391593595,1760683852529,-500.0,0.00043835,30]
[391593597,1760683852538,-500.0,0.00043835,60]
[391593599,1760683852547,-414.3366698,0.00043835,60]
[391593601,1760683852557,-500.0,0.00043835,60]
[391593603,1760683852567,-500.0,0.00043835,60]
[391593605,1760683852575,-339.61083708,0.00043835,60]
[391593607,1760683852585,-500.0,0.00043835,60]
[391593608,1760683852594,-500.0,0.00043835,60]
[391593610,1760683852603,-500.0,0.00043835,60]
[391593612,1760683852612,-500.0,0.00043835,60]
[391593614,1760683852622,-500.0,0.00043835,60]
[391593616,1760683852632,-200.38546124,0.00043835,60]
[391593618,1760683852642,-501.33582416,0.00043835,60]
[391593620,1760683852655,-514.84127014,0.00043835,60]
[391593622,1760683852664,-500.0,0.00043835,60]
[391593623,1760683852677,-532.29732982,0.00043835,60]
[391593625,1760683852688,-481.94812951,0.00043835,60]
[391593627,1760683852697,-500.0,0.00043835,60]
[391593628,1760683852707,-514.99158614,0.00043835,60]
[391593630,1760683852716,-500.0,0.00043835,60]
[391593632,1760683852726,-752.52,0.00043835,60]
[391593634,1760683852735,-1074.87,0.00043835,60]
[391593636,1760683852744,-1074.87,0.00043835,60]
[391593638,1760683852754,-1074.87,0.00043835,60]
[391593640,1760683852763,-1074.87,0.00043835,60]
[391593641,1760683852772,-1074.87,0.00043835,60]
[391593643,1760683852781,-1074.87,0.00043835,60]
[391593645,1760683852791,-1074.87,0.00043835,60]
[391593647,1760683852800,-1074.87,0.00043835,60]
[391593648,1760683852809,-1074.87,0.00043835,60]
[391593650,1760683852818,-1074.87,0.00043835,60]
[391593652,1760683852827,-1074.87,0.00043835,60]
[391593654,1760683852836,-1074.87,0.00043835,60]
[391593656,1760683852845,-1074.87,0.00043835,60]
[391593658,1760683852854,-1074.87,0.00043835,60]
[391593660,1760683852863,-1074.87,0.00043835,60]
[391593662,1760683852873,-1074.87,0.00043835,60]
[391593663,1760683852882,-1074.87,0.00043835,60]
[391593665,1760683852891,-1074.87,0.00043835,60]
[391593667,1760683852900,-1074.87,0.00043835,60]
[391593669,1760683852909,-1074.87,0.00043835,60]
[391593671,1760683852919,-1074.87,0.00043835,60]
[391593673,1760683852932,-1074.87,0.00043835,60]
[391593675,1760683852942,-1074.87,0.00043835,60]
[391593676,1760683852951,-1075.09542233,0.00043835,60]
[391593678,1760683852960,-1170.63,0.00043835,2]
[391593680,1760683852969,-490.99533357,0.00043835,60]
[391593682,1760683852979,-500.0,0.00043835,60]
[391593684,1760683852988,-500.0,0.00043835,60]
[391593693,1760683853072,-500.0,0.00043835,60]
[391593694,1760683853082,-502.95776667,0.00043835,60]
[391593696,1760683853092,-500.0,0.00043835,60]
[391593698,1760683853103,-504.55901246,0.00043835,60]
[391593700,1760683853113,-422.42901428,0.00043835,60]
[391593702,1760683853122,-509.41588892,0.00043835,60]
[391593704,1760683853131,-504.35495939,0.00043835,60]
[391593706,1760683853140,-514.45537997,0.00043835,60]
[391593708,1760683853150,-507.88865091,0.00043835,60]
[391593710,1760683853160,-500.59605135,0.00043835,60]
[391593711,1760683853170,-505.63821842,0.00043835,60]
[391593713,1760683853186,-500.0,0.00043835,60]
[391593715,1760683853196,-500.0,0.00043835,60]
[391593717,1760683853206,-501.55698655,0.00043835,60]
[391593719,1760683853215,-502.00867244,0.00043835,60]
[391593721,1760683853225,-502.13208655,0.00043835,60]
[391593723,1760683853234,-509.39719672,0.00043835,60]
[391593725,1760683853244,-787.02,0.00043835,2]
[391593727,1760683853253,-503.93360554,0.00043835,60]
[391593729,1760683853263,-500.0,0.00043835,60]
[391593730,1760683853272,-507.0,0.00043835,60]
[391593732,1760683853281,-508.00978097,0.00043835,60]
[391593734,1760683853290,-503.14477328,0.00043835,60]
[391593736,1760683853300,-500.0,0.00043835,60]
[391593738,1760683853309,-500.0,0.00043835,60]
[391593740,1760683853318,-500.0,0.00043835,60]
[391593742,1760683853328,-500.0,0.00043835,60]
[391593744,1760683853337,-505.9958182,0.00043835,60]
[391593746,1760683853347,-500.0,0.00043835,60]
[391593747,1760683853356,-500.0,0.00043835,60]
[391593749,1760683853366,-502.77748724,0.00043835,60]
[391593751,1760683853376,-794.32,0.00043835,60]
[391593753,1760683853386,-501.51191502,0.00043835,60]
[391593755,1760683853395,-500.0,0.00043835,60]
[391593757,1760683853404,-500.0,0.00043835,60]
[391593759,1760683853413,-500.0,0.00043835,60]
[391593760,1760683853423,-362.86680568,0.00043835,60]
[391593762,1760683853435,-389.80559468,0.00043835,60]
[391593764,1760683853444,-500.0,0.00043835,60]
[391593766,1760683853454,-543.47648462,0.00043835,15]
[391593768,1760683853465,-500.0,0.00043835,2]
[391593770,1760683853476,-500.9763445,0.00043835,60]
[391593772,1760683853494,-500.77759847,0.00043835,60]
[391593774,1760683853504,-501.03856721,0.00043835,60]
[391593775,1760683853515,-500.0,0.00043835,60]
[391593776,1760683853524,-646.60301104,0.00043835,60]
[391593777,1760683853534,-330.78601563,0.00043835,60]
[391593778,1760683853544,-836.97,0.00043835,3]
[391593779,1760683853554,-500.0,0.00043835,60]
[391593780,1760683853563,-500.0,0.00043835,60]
[391593781,1760683853573,-569.00893382,0.00043835,60]
[391593782,1760683853582,-500.0,0.00043835,60]
[391593783,1760683853592,-500.0,0.00043835,60]
[391593784,1760683853602,-500.0,0.00043835,60]
[391593785,1760683853612,-228.38737924,0.00043835,60]
[391593786,1760683853621,-537.21845214,0.00043835,21]
[391593787,1760683853631,-500.0,0.00043835,60]
[391593788,1760683853641,-500.0,0.00043835,60]
[391593789,1760683853656,-500.0,0.00043835,60]
[391593790,1760683853665,-500.0,0.00043835,60]
[391593791,1760683853676,-500.0,0.00043835,60]
[391593792,1760683853686,-459.24693405,0.00043835,60]
[391593794,1760683853696,-482.12727945,0.00043835,60]
[391593796,1760683853707,-500.0,0.00043835,60]
[391593798,1760683853717,-500.0,0.00043835,60]
[391593800,1760683853729,-500.0,0.00043835,60]
[391593802,1760683853739,-501.19517985,0.00043835,60]
[391593804,1760683853749,-500.0,0.00043835,2]
[391593806,1760683853759,-500.0,0.00043835,60]
[391593808,1760683853768,-503.13327164,0.00043835,60]
[391593810,1760683853778,-997.70865257,0.00043835,30]
[391593812,1760683853787,-525.57,0.00043835,60]
[391593814,1760683853797,-500.0,0.00043835,60]
[391593816,1760683853807,-506.54743112,0.00043835,60]
[391593818,1760683853816,-452.3769506,0.00043835,60]
[391593820,1760683853826,-736.28,0.00043835,60]
[391593822,1760683853835,-500.0,0.00043835,60]
[391593824,1760683853844,-537.85030339,0.00043835,60]
[391593826,1760683853854,-500.0,0.00043835,60]
[391593828,1760683853863,-510.80978908,0.00043835,60]
[391593830,1760683853873,-500.0,0.00043835,60]
[391593832,1760683853883,-6818.48,0.00043835,60]
[391593834,1760683853892,-521.99446907,0.00043835,60]
[391593836,1760683853902,-500.0,0.00043835,60]
[391593837,1760683853911,-472.63606574,0.00043835,60]
[391593839,1760683853921,-501.96952147,0.00043835,60]
[391593841,1760683853933,-500.0,0.00043835,60]
[391593843,1760683853943,-1259.5,0.00043835,60]
[391593845,1760683853953,-500.0,0.00043835,60]
[391593847,1760683853962,-500.0,0.00043835,60]
[391593849,1760683853972,-263.69901708,0.00043835,60]
[391593851,1760683853982,-500.94300275,0.00043835,2]
[391593853,1760683853992,-500.0,0.00043835,60]
[391593855,1760683854002,-500.0,0.00043835,60]
[391593857,1760683854011,-532.27592678,0.00043835,60]
[391593859,1760683854020,-379.62854608,0.00043835,60]
[391593861,1760683854031,-500.0,0.00043835,60]
[391593863,1760683854040,-503.11624523,0.00043835,60]
[391593865,1760683854050,-510.65291596,0.00043835,60]
[391593867,1760683854059,-606.01828906,0.00043835,60]
[391593869,1760683854069,-500.0,0.00043835,60]
[391593871,1760683854079,-500.0,0.00043835,60]
[391593873,1760683854089,-500.0,0.00043835,60]
[391593875,1760683854098,-500.0,0.00043835,60]
[391593877,1760683854109,-501.61164426,0.00043835,60]
[391593879,1760683854118,-500.0,0.00043835,60]
[391593881,1760683854128,-500.0,0.00043835,60]
[391593883,1760683854137,-500.0,0.00043835,60]
[391593885,1760683854146,-500.0,0.00043835,60]
[391593887,1760683854155,-500.0,0.00043835,60]
[391593889,1760683854176,-500.0,0.00043835,60]
[391593891,1760683854187,-500.0,0.00043835,60]
[391593893,1760683854197,-500.0,0.00043835,60]
[391593895,1760683854213,-500.0,0.00043835,60]
[391593897,1760683854224,-500.0,0.00043835,60]
[391593899,1760683854234,-500.0,0.00043835,60]
[391593901,1760683854243,-500.0,0.00043835,60]
[391593903,1760683854253,-500.0,0.00043835,60]
[391593905,1760683854262,-500.0,0.00043835,60]
[391593907,1760683854272,-500.0,0.00043835,60]
[391593908,1760683854282,-500.0,0.00043835,60]
[391593911,1760683854292,-487.17177946,0.00043835,60]
[391593912,1760683854302,-600.0,0.00043858,2]
[391593914,1760683854312,-257.21724074,0.00043945,120]
[391593917,1760683854322,-500.0,0.00043992,60]
[391593918,1760683854332,-1000.0,0.00044,120]
[391593920,1760683854342,-1000.0,0.00044,120]
[391593923,1760683854351,-200.0,0.00044,120]
[391593924,1760683854361,-191.25,0.00044,14]
[391593926,1760683854371,-483.29601299,0.00044109,60]
[391593928,1760683854380,-506.28532754,0.00044109,60]
[391593930,1760683854389,-500.0,0.00044109,60]
[391593932,1760683854399,-1000.0,0.00044109,2]
[391593934,1760683854410,-500.0,0.00044109,60]
[391593936,1760683854420,-542.32,0.00044109,60]
[391593938,1760683854437,-500.0,0.00044109,60]
[391593940,1760683854447,-500.0,0.00044109,60]
[391593942,1760683854458,-996.44,0.00044109,60]
[391593944,1760683854468,-500.0,0.00044109,60]
[391593946,1760683854478,-1000.0,0.00044109,2]
[391593948,1760683854488,-729.09,0.00044109,60]
[391593950,1760683854498,-1000.0,0.00044109,120]
[391593952,1760683854508,-458.24442486,0.00044109,60]
[391593954,1760683854518,-834.03,0.00044109,60]
[391593956,1760683854528,-500.0,0.00044109,60]
[391593958,1760683854541,-507.33439102,0.00044109,60]
[391593960,1760683854550,-500.0,0.00044109,60]
[391593962,1760683854559,-500.0,0.00044109,60]
[391593964,1760683854569,-615.59871169,0.00044109,60]
[391593966,1760683854579,-430.92072943,0.00044109,60]
[391593968,1760683854588,-500.0,0.00044109,60]
[391593970,1760683854597,-501.58843508,0.00044109,60]
[391593972,1760683854607,-500.0,0.00044109,60]
[391593974,1760683854617,-500.0,0.00044109,60]
[391593976,1760683854626,-733.44,0.00044109,60]
[391593978,1760683854636,-500.0,0.00044109,60]
[391593980,1760683854647,-176.15698807,0.00044109,30]
[391593982,1760683854658,-222.43457557,0.00044109,60]
[391593984,1760683854667,-502.42307432,0.00044109,60]
[391593985,1760683854681,-505.06743852,0.00044109,60]
[391593987,1760683854691,-500.0,0.00044109,60]
[391593989,1760683854701,-500.0,0.00044109,60]
[391593991,1760683854711,-500.0,0.00044109,60]
[391593993,1760683854720,-512.03240056,0.00044109,60]
[391593995,1760683854730,-201.36510441,0.00044109,60]
[391593997,1760683854740,-501.22185501,0.00044109,60]
[391594000,1760683854750,-502.21725024,0.00044109,60]
[391594001,1760683854759,-504.77134636,0.00044109,60]
[391594003,1760683854769,-752.52,0.00044109,60]
[391594005,1760683854779,-1170.63,0.00044109,2]